[Event "Early-Titled-Tuesday-Blitz-January-23-2024"]
[Site "Chess.com"]
[Date "2024.01.23"]
[Round "7"]
[White "artin10862"]
[Black "GroovyKettle"]
[Result "1-0"]
[WhiteElo "2851"]
[BlackElo "2966"]
[TimeControl "180+1"]
[EndTime "9:18:31 PST"]
[Termination "artin10862 won on time"]

1. d4 {[%clk 0:03:00.9]} 1... Nf6 {[%clk 0:03:00.9]} 2. c4 {[%clk 0:02:59.6]}
2... e6 {[%clk 0:03:01.2]} 3. Nc3 {[%clk 0:02:59.8]} 3... d5 {[%clk 0:03:00.1]}
4. Nf3 {[%clk 0:02:53.9]} 4... c6 {[%clk 0:02:57.5]} 5. g3 {[%clk 0:02:50.1]}
5... dxc4 {[%clk 0:02:56.4]} 6. Bg2 {[%clk 0:02:50]} 6... b5 {[%clk 0:02:57.1]}
7. O-O {[%clk 0:02:42.7]} 7... Bb7 {[%clk 0:02:56.9]} 8. e4 {[%clk 0:02:42.6]}
8... Be7 {[%clk 0:02:55.7]} 9. e5 {[%clk 0:01:49.3]} 9... Nd5 {[%clk 0:02:55.1]}
10. Ne4 {[%clk 0:01:49.3]} 10... h6 {[%clk 0:02:53.5]} 11. b3 {[%clk 0:01:45.2]}
11... cxb3 {[%clk 0:02:52.8]} 12. axb3 {[%clk 0:01:45.1]} 12... Nd7 {[%clk
0:02:52.7]} 13. Ba3 {[%clk 0:01:39.5]} 13... b4 {[%clk 0:02:52.8]} 14. Bb2
{[%clk 0:01:39.8]} 14... c5 {[%clk 0:02:52.1]} 15. dxc5 {[%clk 0:01:36.1]} 15...
Nxc5 {[%clk 0:02:53]} 16. Nd6+ {[%clk 0:01:36.1]} 16... Bxd6 {[%clk 0:02:52.5]}
17. exd6 {[%clk 0:01:37]} 17... f6 {[%clk 0:02:12.5]} 18. Nd4 {[%clk 0:01:19]}
18... Qxd6 {[%clk 0:02:00.4]} 19. Qh5+ {[%clk 0:01:18.5]} 19... Kf8 {[%clk
0:01:57.4]} 20. Rfd1 {[%clk 0:01:09.8]} 20... Qe7 {[%clk 0:01:52.9]} 21. Rac1
{[%clk 0:01:03.7]} 21... Rc8 {[%clk 0:01:47.5]} 22. Nxe6+ {[%clk 0:00:50.6]}
22... Nxe6 {[%clk 0:01:31.5]} 23. Rxc8+ {[%clk 0:00:51.5]} 23... Bxc8 {[%clk
0:01:31.6]} 24. Bxd5 {[%clk 0:00:49.6]} 24... Qe8 {[%clk 0:01:22.1]} 25. Qg4
{[%clk 0:00:42.9]} 25... Qe7 {[%clk 0:00:53.8]} 26. Rc1 {[%clk 0:00:22.9]} 26...
Kf7 {[%clk 0:00:48.6]} 27. Qh5+ {[%clk 0:00:18.8]} 27... g6 {[%clk 0:00:47.8]}
28. Qf3 {[%clk 0:00:18.9]} 28... Rd8 {[%clk 0:00:22.1]} 29. Re1 {[%clk
0:00:18.7]} 29... Kg7 {[%clk 0:00:17.6]} 30. Bc4 {[%clk 0:00:13]} 30... Re8
{[%clk 0:00:16.9]} 31. Qe3 {[%clk 0:00:09.3]} 31... Qf7 {[%clk 0:00:15.8]} 32.
Qd2 {[%clk 0:00:08.1]} 32... Qd7 {[%clk 0:00:08.9]} 33. Qxb4 {[%clk 0:00:05.7]}
33... Ng5 {[%clk 0:00:09]} 34. Rxe8 {[%clk 0:00:05]} 34... Qxe8 {[%clk
0:00:09.9]} 35. h4 {[%clk 0:00:02.7]} 35... Nf3+ {[%clk 0:00:09.6]} 36. Kg2
{[%clk 0:00:03.1]} 36... Qe4 {[%clk 0:00:07.6]} 37. Bxf6+ {[%clk 0:00:03.4]}
37... Kxf6 {[%clk 0:00:03.4]} 38. Qf8+ {[%clk 0:00:03.6]} 38... Ke5 {[%clk
0:00:04]} 39. Qxf3 {[%clk 0:00:02.7]} 39... Bb7 {[%clk 0:00:04]} 40. Qxe4+
{[%clk 0:00:02.8]} 40... Bxe4+ {[%clk 0:00:04.9]} 41. Kf1 {[%clk 0:00:03.4]}
41... Kd4 {[%clk 0:00:04.7]} 42. Ke2 {[%clk 0:00:03.6]} 42... Kc3 {[%clk
0:00:05.3]} 43. Bf7 {[%clk 0:00:03.9]} 43... g5 {[%clk 0:00:05.2]} 44. h5 {[%clk
0:00:02.1]} 44... Bc2 {[%clk 0:00:04.6]} 45. f4 {[%clk 0:00:02.1]} 45... gxf4
{[%clk 0:00:04.3]} 46. gxf4 {[%clk 0:00:03]} 46... a5 {[%clk 0:00:04.5]} 47. Ke3
{[%clk 0:00:02.8]} 47... Bf5 {[%clk 0:00:02]} 48. Bg6 {[%clk 0:00:02.8]} 48...
Be6 {[%clk 0:00:02]} 49. f5 {[%clk 0:00:03.1]} 49... Bxb3 {[%clk 0:00:02.6]} 50.
f6 {[%clk 0:00:03.4]} 50... a4 {[%clk 0:00:03]} 51. f7 {[%clk 0:00:03.8]} 51...
Bxf7 {[%clk 0:00:02.6]} 52. Bxf7 {[%clk 0:00:04.7]} 52... a3 {[%clk 0:00:02.1]}
53. Ke4 {[%clk 0:00:05.6]} 1-0

[Event "Early-Titled-Tuesday-Blitz-January-23-2024"]
[Site "Chess.com"]
[Date "2024.01.23"]
[Round "7"]
[White "GlennTipton"]
[Black "FLYD"]
[Result "1-0"]
[WhiteElo "2520"]
[BlackElo "2113"]
[TimeControl "180+1"]
[EndTime "9:18:31 PST"]
[Termination "GlennTipton won by checkmate"]

1. e4 {[%clk 0:03:00.5]} 1... e5 {[%clk 0:02:59.9]} 2. Nf3 {[%clk 0:02:58.8]}
2... Nf6 {[%clk 0:03:00.3]} 3. Nxe5 {[%clk 0:02:58.8]} 3... Nc6 {[%clk
0:03:00.9]} 4. Nxc6 {[%clk 0:02:57.1]} 4... dxc6 {[%clk 0:03:01.8]} 5. d3 {[%clk
0:02:54.6]} 5... Bc5 {[%clk 0:03:02]} 6. Be2 {[%clk 0:02:51]} 6... h5 {[%clk
0:03:00.5]} 7. h3 {[%clk 0:02:35.7]} 7... Qd4 {[%clk 0:02:53.6]} 8. Rf1 {[%clk
0:02:30.3]} 8... Be6 {[%clk 0:02:48.2]} 9. c3 {[%clk 0:02:17.4]} 9... Qd7 {[%clk
0:02:41.1]} 10. d4 {[%clk 0:02:03.1]} 10... Bb6 {[%clk 0:02:30.5]} 11. Qc2
{[%clk 0:01:48.9]} 11... O-O-O {[%clk 0:02:21.5]} 12. Bg5 {[%clk 0:01:44.8]}
12... Rhe8 {[%clk 0:01:57.8]} 13. Nd2 {[%clk 0:01:41.2]} 13... c5 {[%clk
0:01:19.5]} 14. Bxf6 {[%clk 0:00:53.8]} 14... gxf6 {[%clk 0:01:13.7]} 15. d5
{[%clk 0:00:49.2]} 15... Bxd5 {[%clk 0:01:13.6]} 16. exd5 {[%clk 0:00:50.1]}
16... Qxd5 {[%clk 0:01:04.2]} 17. Nf3 {[%clk 0:00:50.1]} 17... Qc6 {[%clk
0:00:42.5]} 18. Rd1 {[%clk 0:00:46.8]} 18... Rxd1+ {[%clk 0:00:08.3]} 19. Kxd1
{[%clk 0:00:46.7]} 19... Rd8+ {[%clk 0:00:08.2]} 20. Kc1 {[%clk 0:00:46.7]}
20... c4 {[%clk 0:00:08.5]} 21. Rd1 {[%clk 0:00:43]} 21... Re8 {[%clk
0:00:08.1]} 22. Bf1 {[%clk 0:00:41.3]} 22... Kb8 {[%clk 0:00:06.6]} 23. Nd4
{[%clk 0:00:37.4]} 23... Bxd4 {[%clk 0:00:06.3]} 24. cxd4 {[%clk 0:00:37.5]}
24... b5 {[%clk 0:00:07.2]} 25. d5 {[%clk 0:00:33.7]} 25... Qd6 {[%clk
0:00:06.6]} 26. Kb1 {[%clk 0:00:28.6]} 26... Kb7 {[%clk 0:00:05.8]} 27. b3
{[%clk 0:00:28.2]} 27... Re5 {[%clk 0:00:04.9]} 28. bxc4 {[%clk 0:00:27.5]}
28... bxc4 {[%clk 0:00:05.8]} 29. Bxc4 {[%clk 0:00:26.9]} 29... a5 {[%clk
0:00:05.6]} 30. Qb3+ {[%clk 0:00:20.2]} 30... Ka7 {[%clk 0:00:06.2]} 31. Qb5
{[%clk 0:00:19.2]} 31... c5 {[%clk 0:00:02.4]} 32. Qxa5+ {[%clk 0:00:17.8]}
32... Kb7 {[%clk 0:00:02.7]} 33. Ka1 {[%clk 0:00:16.4]} 33... Re4 {[%clk
0:00:01.7]} 34. Rb1+ {[%clk 0:00:16.4]} 34... Kc8 {[%clk 0:00:01.7]} 35. Ba6+
{[%clk 0:00:16.8]} 35... Kd7 {[%clk 0:00:01.5]} 36. Bb5+ {[%clk 0:00:14]} 36...
Ke7 {[%clk 0:00:01.9]} 37. Qc3 {[%clk 0:00:13.1]} 37... Re5 {[%clk 0:00:01.6]}
38. Re1 {[%clk 0:00:12.4]} 38... Kf8 {[%clk 0:00:02.5]} 39. Rxe5 {[%clk
0:00:11.4]} 39... fxe5 {[%clk 0:00:03.4]} 40. Bc6 {[%clk 0:00:10.9]} 40... f6
{[%clk 0:00:03.7]} 41. f3 {[%clk 0:00:10.6]} 41... Ke7 {[%clk 0:00:04.6]} 42. g4
{[%clk 0:00:11.1]} 42... Kf8 {[%clk 0:00:05.4]} 43. a4 {[%clk 0:00:11.2]} 43...
h4 {[%clk 0:00:05.4]} 44. a5 {[%clk 0:00:11.3]} 44... c4 {[%clk 0:00:05.6]} 45.
Qxc4 {[%clk 0:00:10.5]} 45... Qa3+ {[%clk 0:00:06.3]} 46. Kb1 {[%clk 0:00:11.1]}
46... Qxa5 {[%clk 0:00:06.4]} 47. Kc2 {[%clk 0:00:11.3]} 47... Ke7 {[%clk
0:00:06.7]} 48. Kb3 {[%clk 0:00:11.4]} 48... Kd6 {[%clk 0:00:07.3]} 49. Qb4+
{[%clk 0:00:11.6]} 49... Qxb4+ {[%clk 0:00:07.8]} 50. Kxb4 {[%clk 0:00:12.5]}
50... f5 {[%clk 0:00:08]} 51. gxf5 {[%clk 0:00:12.7]} 51... Ke7 {[%clk 0:00:08]}
52. Kc4 {[%clk 0:00:13]} 52... Kf6 {[%clk 0:00:08.9]} 53. Bd7 {[%clk 0:00:13.3]}
53... Ke7 {[%clk 0:00:09.1]} 54. Be6 {[%clk 0:00:13.3]} 54... Kf6 {[%clk
0:00:10]} 55. Kd3 {[%clk 0:00:13.8]} 55... Ke7 {[%clk 0:00:10.9]} 56. Ke4 {[%clk
0:00:14.4]} 56... Kd6 {[%clk 0:00:11.3]} 57. f6 {[%clk 0:00:14.6]} 57... Kc5
{[%clk 0:00:10.8]} 58. Kxe5 {[%clk 0:00:15.5]} 58... Kc4 {[%clk 0:00:11]} 59. f7
{[%clk 0:00:16.4]} 59... Kd3 {[%clk 0:00:11.9]} 60. f8=Q {[%clk 0:00:16.7]}
60... Ke3 {[%clk 0:00:12.8]} 61. f4 {[%clk 0:00:17.4]} 61... Kf3 {[%clk
0:00:13.7]} 62. f5 {[%clk 0:00:18.3]} 62... Kg3 {[%clk 0:00:14.4]} 63. f6 {[%clk
0:00:18.9]} 63... Kh2 {[%clk 0:00:15.3]} 64. Qg7 {[%clk 0:00:18.7]} 64... Kh1
{[%clk 0:00:16.2]} 65. Kf4 {[%clk 0:00:18.5]} 65... Kh2 {[%clk 0:00:17.1]} 66.
Kf3 {[%clk 0:00:19.1]} 66... Kh1 {[%clk 0:00:17.6]} 67. Qg2# {[%clk 0:00:19.9]}
1-0

[Event "Early-Titled-Tuesday-Blitz-January-23-2024"]
[Site "Chess.com"]
[Date "2024.01.23"]
[Round "7"]
[White "Predator0608"]
[Black "Flawless_Fighter"]
[Result "0-1"]
[WhiteElo "2520"]
[BlackElo "2727"]
[TimeControl "180+1"]
[EndTime "9:18:33 PST"]
[Termination "Flawless_Fighter won on time"]

1. e4 {[%clk 0:03:00.9]} 1... c5 {[%clk 0:02:57.9]} 2. Nf3 {[%clk 0:02:59.4]}
2... Nc6 {[%clk 0:02:58.3]} 3. d4 {[%clk 0:02:57.3]} 3... cxd4 {[%clk
0:02:58.1]} 4. Nxd4 {[%clk 0:02:58.2]} 4... Nf6 {[%clk 0:02:57.3]} 5. Nc3 {[%clk
0:02:57.1]} 5... e6 {[%clk 0:02:57.4]} 6. Nxc6 {[%clk 0:02:54.8]} 6... bxc6
{[%clk 0:02:56.5]} 7. e5 {[%clk 0:02:55.4]} 7... Nd5 {[%clk 0:02:56.5]} 8. Ne4
{[%clk 0:02:56]} 8... Qc7 {[%clk 0:02:56.5]} 9. f4 {[%clk 0:02:54.9]} 9... Qb6
{[%clk 0:02:54.7]} 10. c4 {[%clk 0:02:52.5]} 10... Bb4+ {[%clk 0:02:53.9]} 11.
Ke2 {[%clk 0:02:52.6]} 11... f5 {[%clk 0:02:53.8]} 12. exf6 {[%clk 0:02:50.4]}
12... Nxf6 {[%clk 0:02:49.4]} 13. Be3 {[%clk 0:02:50.7]} 13... Qd8 {[%clk
0:02:46.6]} 14. Nd6+ {[%clk 0:02:42.6]} 14... Bxd6 {[%clk 0:02:42.2]} 15. Qxd6
{[%clk 0:02:43.5]} 15... c5 {[%clk 0:02:24.8]} 16. Bxc5 {[%clk 0:02:15.3]} 16...
Ne4 {[%clk 0:02:21]} 17. Qd4 {[%clk 0:02:15.2]} 17... Nxc5 {[%clk 0:02:20.5]}
18. Qxc5 {[%clk 0:02:14.7]} 18... Qf6 {[%clk 0:02:17]} 19. Qe5 {[%clk
0:02:10.1]} 19... Qxe5+ {[%clk 0:02:11.6]} 20. fxe5 {[%clk 0:02:11]} 20... Rf8
{[%clk 0:02:09.3]} 21. Re1 {[%clk 0:01:42.4]} 21... Bb7 {[%clk 0:01:53.7]} 22.
Kd2 {[%clk 0:01:28.9]} 22... Rc8 {[%clk 0:01:40.8]} 23. Bd3 {[%clk 0:01:20.3]}
23... g6 {[%clk 0:01:32.2]} 24. Rhg1 {[%clk 0:01:13.6]} 24... a5 {[%clk
0:01:30]} 25. Re2 {[%clk 0:01:01.9]} 25... a4 {[%clk 0:01:24.1]} 26. Rge1 {[%clk
0:01:01.2]} 26... Rf4 {[%clk 0:01:08.9]} 27. Ke3 {[%clk 0:00:55.6]} 27... Rf7
{[%clk 0:00:42.7]} 28. g3 {[%clk 0:00:36.6]} 28... Ba6 {[%clk 0:00:41.2]} 29.
Kd4 {[%clk 0:00:35.7]} 29... Ke7 {[%clk 0:00:40.7]} 30. b4 {[%clk 0:00:34.5]}
30... axb3 {[%clk 0:00:40.9]} 31. axb3 {[%clk 0:00:35.4]} 31... Rb8 {[%clk
0:00:39.7]} 32. Kc3 {[%clk 0:00:35.6]} 32... Bb7 {[%clk 0:00:36.2]} 33. b4
{[%clk 0:00:34.7]} 33... Rf3 {[%clk 0:00:27.8]} 34. b5 {[%clk 0:00:30.4]} 34...
Rc8 {[%clk 0:00:26.4]} 35. Re3 {[%clk 0:00:27.5]} 35... Rf2 {[%clk 0:00:26.6]}
36. R1e2 {[%clk 0:00:28]} 36... Rf1 {[%clk 0:00:26.6]} 37. Kd4 {[%clk
0:00:28.6]} 37... Rd1 {[%clk 0:00:25.8]} 38. Rf2 {[%clk 0:00:25.4]} 38... Ra8
{[%clk 0:00:22]} 39. Kc5 {[%clk 0:00:23.6]} 39... Ra3 {[%clk 0:00:20.2]} 40. Be2
{[%clk 0:00:19.6]} 40... Rxe3 {[%clk 0:00:15.1]} 41. Bxd1 {[%clk 0:00:20]} 41...
Rxe5+ {[%clk 0:00:14.5]} 42. Kb6 {[%clk 0:00:19.7]} 42... Be4 {[%clk 0:00:12.9]}
43. Bf3 {[%clk 0:00:17.1]} 43... Rf5 {[%clk 0:00:12]} 44. Bxe4 {[%clk
0:00:17.4]} 44... Rxf2 {[%clk 0:00:12.3]} 45. c5 {[%clk 0:00:12.6]} 45... Rb2
{[%clk 0:00:09]} 46. Bd3 {[%clk 0:00:11.9]} 46... e5 {[%clk 0:00:07.3]} 47. Kc7
{[%clk 0:00:11.4]} 47... Rb3 {[%clk 0:00:06.5]} 48. Bf1 {[%clk 0:00:10.7]} 48...
Rc3 {[%clk 0:00:06.9]} 0-1

[Event "Early-Titled-Tuesday-Blitz-January-23-2024"]
[Site "Chess.com"]
[Date "2024.01.23"]
[Round "7"]
[White "luckyswitchback"]
[Black "santosalberto1987"]
[Result "1/2-1/2"]
[WhiteElo "2703"]
[BlackElo "2543"]
[TimeControl "180+1"]
[EndTime "9:18:33 PST"]
[Termination "Game drawn by repetition"]

1. e4 {[%clk 0:02:55.1]} 1... e6 {[%clk 0:02:59.9]} 2. d4 {[%clk 0:02:55.1]}
2... d5 {[%clk 0:03:00.2]} 3. Nd2 {[%clk 0:02:55.9]} 3... c5 {[%clk 0:03:00.1]}
4. Ngf3 {[%clk 0:02:56]} 4... cxd4 {[%clk 0:02:59.6]} 5. Nxd4 {[%clk 0:02:56.9]}
5... Nf6 {[%clk 0:02:59.5]} 6. exd5 {[%clk 0:02:50.3]} 6... Nxd5 {[%clk
0:03:00.4]} 7. c4 {[%clk 0:02:43.8]} 7... Nb4 {[%clk 0:02:55.9]} 8. N2f3 {[%clk
0:02:32.8]} 8... N8c6 {[%clk 0:02:55.7]} 9. Nxc6 {[%clk 0:02:27]} 9... Qxd1+
{[%clk 0:02:53.6]} 10. Kxd1 {[%clk 0:02:27.9]} 10... Nxc6 {[%clk 0:02:54]} 11.
a3 {[%clk 0:02:27.7]} 11... Be7 {[%clk 0:02:52.6]} 12. Kc2 {[%clk 0:02:27.1]}
12... Rg8 {[%clk 0:02:44.9]} 13. Bd3 {[%clk 0:02:24]} 13... f5 {[%clk
0:02:35.1]} 14. Re1 {[%clk 0:02:20.4]} 14... h6 {[%clk 0:02:35]} 15. Bd2 {[%clk
0:02:11.5]} 15... Kf7 {[%clk 0:02:34.3]} 16. Bc3 {[%clk 0:02:10.2]} 16... Bf6
{[%clk 0:02:33.2]} 17. Ne5+ {[%clk 0:02:07.7]} 17... Nxe5 {[%clk 0:02:31.4]} 18.
Bxe5 {[%clk 0:02:08.6]} 18... Bd7 {[%clk 0:02:29.1]} 19. f3 {[%clk 0:01:59.9]}
19... Rac8 {[%clk 0:02:22.4]} 20. a4 {[%clk 0:01:55.8]} 20... a6 {[%clk
0:02:17]} 21. a5 {[%clk 0:01:51.1]} 21... Rc5 {[%clk 0:02:07.7]} 22. Bd6 {[%clk
0:01:41.3]} 22... Rc6 {[%clk 0:02:06.1]} 23. Be5 {[%clk 0:01:40.9]} 23... Rc5
{[%clk 0:02:06]} 24. Bc3 {[%clk 0:01:33.2]} 24... Rgc8 {[%clk 0:01:49.6]} 25. b4
{[%clk 0:01:24.3]} 25... Rxc4 {[%clk 0:01:42.9]} 26. Bxc4 {[%clk 0:01:25.2]}
26... Rxc4 {[%clk 0:01:43.2]} 27. Re3 {[%clk 0:01:08.2]} 27... Bc6 {[%clk
0:01:04.4]} 28. Rb1 {[%clk 0:00:26.2]} 28... Bd5 {[%clk 0:00:59.9]} 29. b5
{[%clk 0:00:20.2]} 29... axb5 {[%clk 0:00:55.2]} 30. Rxb5 {[%clk 0:00:20]} 30...
Rc7 {[%clk 0:00:41.7]} 31. Kb2 {[%clk 0:00:14.3]} 31... f4 {[%clk 0:00:34.6]}
32. Rd3 {[%clk 0:00:08.4]} 32... Bc4 {[%clk 0:00:34.7]} 33. Bxf6 {[%clk
0:00:08]} 33... Bxd3 {[%clk 0:00:27.2]} 34. Be5 {[%clk 0:00:07.9]} 34... Rc2+
{[%clk 0:00:23.6]} 35. Kb3 {[%clk 0:00:08.3]} 35... Bxb5 {[%clk 0:00:16.2]} 36.
Kxc2 {[%clk 0:00:08.5]} 36... g5 {[%clk 0:00:16.4]} 37. g3 {[%clk 0:00:08.3]}
37... fxg3 {[%clk 0:00:16]} 38. hxg3 {[%clk 0:00:08.5]} 38... Bc6 {[%clk
0:00:15.4]} 39. f4 {[%clk 0:00:08.1]} 39... gxf4 {[%clk 0:00:14.5]} 40. Bxf4
{[%clk 0:00:08.1]} 40... Kg6 {[%clk 0:00:14.3]} 41. Kd2 {[%clk 0:00:07.9]} 41...
h5 {[%clk 0:00:13.8]} 42. Ke3 {[%clk 0:00:08.3]} 42... Kf5 {[%clk 0:00:14]} 43.
Bc7 {[%clk 0:00:08.2]} 43... e5 {[%clk 0:00:13.2]} 44. Bb8 {[%clk 0:00:08.2]}
44... Bd5 {[%clk 0:00:13.1]} 45. Bc7 {[%clk 0:00:08.5]} 45... Bc6 {[%clk
0:00:13.4]} 46. Bb8 {[%clk 0:00:09]} 46... e4 {[%clk 0:00:13.4]} 47. Bf4 {[%clk
0:00:08.4]} 47... Ke6 {[%clk 0:00:11.2]} 48. Bc7 {[%clk 0:00:08.3]} 48... Kd5
{[%clk 0:00:11.4]} 49. Bb6 {[%clk 0:00:08.6]} 49... Ke6 {[%clk 0:00:11.2]} 50.
Bc7 {[%clk 0:00:08.9]} 50... Kf5 {[%clk 0:00:11.5]} 51. Bb8 {[%clk 0:00:09.2]}
51... Kg4 {[%clk 0:00:11.6]} 52. Bc7 {[%clk 0:00:09.6]} 52... h4 {[%clk
0:00:11.1]} 53. gxh4 {[%clk 0:00:10.5]} 53... Kxh4 {[%clk 0:00:11.6]} 54. Bd8+
{[%clk 0:00:11]} 54... Kg4 {[%clk 0:00:11.9]} 55. Bb6 {[%clk 0:00:11.9]} 55...
Kf5 {[%clk 0:00:12.2]} 56. Bc7 {[%clk 0:00:12.6]} 56... Ke6 {[%clk 0:00:12.3]}
57. Bb6 {[%clk 0:00:13.3]} 57... Kd5 {[%clk 0:00:12.3]} 58. Bd8 {[%clk
0:00:13.4]} 58... Kd6 {[%clk 0:00:12.4]} 59. Bb6 {[%clk 0:00:13.7]} 59... Kd7
{[%clk 0:00:12.4]} 60. Bd4 {[%clk 0:00:14]} 60... Kd6 {[%clk 0:00:12.5]} 61. Bb6
{[%clk 0:00:14.3]} 61... Kd7 {[%clk 0:00:12.9]} 62. Bd4 {[%clk 0:00:14.4]} 62...
Kd6 {[%clk 0:00:13.2]} 63. Bb6 {[%clk 0:00:14.8]} 1/2-1/2

[Event "Early-Titled-Tuesday-Blitz-January-23-2024"]
[Site "Chess.com"]
[Date "2024.01.23"]
[Round "7"]
[White "ViratKohl_i"]
[Black "I_am_Javi"]
[Result "0-1"]
[WhiteElo "2603"]
[BlackElo "2788"]
[TimeControl "180+1"]
[EndTime "9:18:35 PST"]
[Termination "I_am_Javi won by resignation"]

1. e4 {[%clk 0:03:00.9]} 1... e5 {[%clk 0:03:00.2]} 2. Nf3 {[%clk 0:03:00.4]}
2... Nc6 {[%clk 0:03:00.7]} 3. Bc4 {[%clk 0:02:58.7]} 3... g6 {[%clk 0:03:00.6]}
4. d4 {[%clk 0:02:58]} 4... exd4 {[%clk 0:03:01.5]} 5. Nxd4 {[%clk 0:02:55]}
5... Bg7 {[%clk 0:03:00.5]} 6. Ne2 {[%clk 0:02:52.5]} 6... Nge7 {[%clk
0:02:59.7]} 7. O-O {[%clk 0:02:52.6]} 7... O-O {[%clk 0:03:00.2]} 8. Nbc3 {[%clk
0:02:52.3]} 8... d6 {[%clk 0:02:59.1]} 9. Nf4 {[%clk 0:02:43.2]} 9... h6 {[%clk
0:02:55.1]} 10. Re1 {[%clk 0:02:39.3]} 10... Kh7 {[%clk 0:02:55]} 11. a3 {[%clk
0:02:34]} 11... f5 {[%clk 0:02:52.4]} 12. exf5 {[%clk 0:02:33.8]} 12... Nxf5
{[%clk 0:02:53.3]} 13. Bd3 {[%clk 0:02:17.1]} 13... Ne5 {[%clk 0:02:51.1]} 14.
Be4 {[%clk 0:02:15.9]} 14... c6 {[%clk 0:02:47.7]} 15. Nd3 {[%clk 0:02:10.2]}
15... Qh4 {[%clk 0:02:34.1]} 16. g3 {[%clk 0:02:04.1]} 16... Qd8 {[%clk
0:02:15.7]} 17. Nxe5 {[%clk 0:01:57.3]} 17... Bxe5 {[%clk 0:02:15.2]} 18. f4
{[%clk 0:01:53.3]} 18... Bd4+ {[%clk 0:02:10.5]} 19. Kg2 {[%clk 0:01:52.2]}
19... Bg7 {[%clk 0:02:11.3]} 20. Ne2 {[%clk 0:01:40.3]} 20... d5 {[%clk
0:02:09.4]} 21. Bf3 {[%clk 0:01:39.4]} 21... Re8 {[%clk 0:02:07.5]} 22. Ng1
{[%clk 0:01:34.3]} 22... Nd4 {[%clk 0:02:02.8]} 23. Rxe8 {[%clk 0:01:31.3]}
23... Qxe8 {[%clk 0:02:03.7]} 24. c3 {[%clk 0:01:23.4]} 24... Nxf3 {[%clk
0:02:03.5]} 25. Nxf3 {[%clk 0:01:22.1]} 25... Bf5 {[%clk 0:02:02.1]} 26. Kf2
{[%clk 0:01:17.7]} 26... Be4 {[%clk 0:01:50.2]} 27. Be3 {[%clk 0:01:16.5]} 27...
Qd7 {[%clk 0:01:50.4]} 28. Bd4 {[%clk 0:01:12.6]} 28... Re8 {[%clk 0:01:40.5]}
29. Bxg7 {[%clk 0:01:11.5]} 29... Qxg7 {[%clk 0:01:41.1]} 30. Qd4 {[%clk
0:01:07.8]} 30... Qd7 {[%clk 0:01:39.5]} 31. Qf6 {[%clk 0:00:44.1]} 31... Bxf3
{[%clk 0:01:22.3]} 32. Kxf3 {[%clk 0:00:42.4]} 32... Re6 {[%clk 0:01:21.4]} 33.
Qf8 {[%clk 0:00:38.3]} 33... d4 {[%clk 0:01:21.2]} 34. Rd1 {[%clk 0:00:32.4]}
34... d3 {[%clk 0:01:17.8]} 35. f5 {[%clk 0:00:23.2]} 35... Qd5+ {[%clk
0:00:26]} 36. Kg4 {[%clk 0:00:13.5]} 36... Re4+ {[%clk 0:00:26.2]} 37. Kh3
{[%clk 0:00:12.5]} 37... gxf5 {[%clk 0:00:26.8]} 38. Rxd3 {[%clk 0:00:08.6]}
38... Qe6 {[%clk 0:00:17.8]} 39. Rd8 {[%clk 0:00:05.8]} 39... f4+ {[%clk
0:00:17.7]} 40. g4 {[%clk 0:00:05.4]} 40... Re3+ {[%clk 0:00:10.4]} 41. Kh4
{[%clk 0:00:05.6]} 41... Qe7+ {[%clk 0:00:05.4]} 42. Qxe7+ {[%clk 0:00:05.7]}
42... Rxe7 {[%clk 0:00:06.3]} 43. Rf8 {[%clk 0:00:05.7]} 43... Re2 {[%clk
0:00:06.5]} 44. Rxf4 {[%clk 0:00:05.4]} 44... Rxb2 {[%clk 0:00:07.2]} 45. Kg3
{[%clk 0:00:04.9]} 45... Kg6 {[%clk 0:00:07.2]} 46. Rb4 {[%clk 0:00:04.6]} 46...
Rc2 {[%clk 0:00:06.7]} 47. c4 {[%clk 0:00:03.5]} 47... b6 {[%clk 0:00:06.6]} 48.
h3 {[%clk 0:00:03]} 48... c5 {[%clk 0:00:06.8]} 49. Ra4 {[%clk 0:00:02.1]} 49...
a5 {[%clk 0:00:07]} 50. h4 {[%clk 0:00:02.2]} 50... Rd2 {[%clk 0:00:04.8]} 51.
Kf4 {[%clk 0:00:02]} 51... Rd4+ {[%clk 0:00:05.5]} 52. Kf3 {[%clk 0:00:01.6]}
52... Kf6 {[%clk 0:00:05.9]} 53. Kg3 {[%clk 0:00:01.8]} 53... Ke5 {[%clk
0:00:06.1]} 54. Kf3 {[%clk 0:00:02.1]} 54... Rd3+ {[%clk 0:00:05.9]} 55. Kf2
{[%clk 0:00:02]} 55... Rh3 {[%clk 0:00:06.2]} 0-1